[Event "Late-Titled-Tuesday-Blitz-March-26-2024"]
[Site "Chess.com"]
[Date "2024.03.26"]
[Round "3"]
[White "SahibSinghKnight"]
[Black "Abhishek2"]
[Result "1/2-1/2"]
[WhiteElo "2586"]
[BlackElo "2413"]
[TimeControl "180+1"]
[EndTime "14:30:39 PDT"]
[Termination "Game drawn - insufficient material"]

1. e4 {[%clk 0:02:57.1]} 1... e5 {[%clk 0:03:00.2]} 2. Nf3 {[%clk 0:02:55.1]}
2... Nc6 {[%clk 0:03:00.4]} 3. Bb5 {[%clk 0:02:55]} 3... a6 {[%clk 0:03:00.7]}
4. Ba4 {[%clk 0:02:54.1]} 4... Nf6 {[%clk 0:03:01.2]} 5. O-O {[%clk 0:02:54.2]}
5... b5 {[%clk 0:03:01.8]} 6. Bb3 {[%clk 0:02:53.7]} 6... Bc5 {[%clk 0:03:02.3]}
7. c3 {[%clk 0:02:53.6]} 7... d6 {[%clk 0:03:02.5]} 8. h3 {[%clk 0:02:51.1]}
8... O-O {[%clk 0:03:02]} 9. Re1 {[%clk 0:02:48.2]} 9... h6 {[%clk 0:03:00.4]}
10. d4 {[%clk 0:02:47.5]} 10... Bb6 {[%clk 0:02:58.5]} 11. a4 {[%clk 0:02:46.9]}
11... Bb7 {[%clk 0:02:56.3]} 12. Bc2 {[%clk 0:02:40.9]} 12... exd4 {[%clk
0:02:54.4]} 13. cxd4 {[%clk 0:02:41.8]} 13... Nb4 {[%clk 0:02:55]} 14. Nc3
{[%clk 0:02:31.1]} 14... Nxc2 {[%clk 0:02:54.8]} 15. Qxc2 {[%clk 0:02:32]} 15...
b4 {[%clk 0:02:53.3]} 16. Nb1 {[%clk 0:02:31.8]} 16... a5 {[%clk 0:02:47.1]} 17.
Nbd2 {[%clk 0:02:31.3]} 17... Re8 {[%clk 0:02:47]} 18. b3 {[%clk 0:02:29.8]}
18... Qe7 {[%clk 0:02:45.4]} 19. d5 {[%clk 0:02:26.5]} 19... c6 {[%clk
0:02:41.6]} 20. Nc4 {[%clk 0:02:19.5]} 20... Bc5 {[%clk 0:02:27.9]} 21. Bb2
{[%clk 0:01:58.4]} 21... Nxe4 {[%clk 0:02:15.5]} 22. dxc6 {[%clk 0:00:48]} 22...
Bxc6 {[%clk 0:02:01.3]} 23. Re2 {[%clk 0:00:45.3]} 23... Qa7 {[%clk 0:01:51.6]}
24. Rae1 {[%clk 0:00:15.9]} 24... Re6 {[%clk 0:01:43.2]} 25. Bc1 {[%clk
0:00:10.8]} 25... Nxf2 {[%clk 0:01:36.1]} 26. Rxf2 {[%clk 0:00:09.6]} 26... Bxf3
{[%clk 0:01:31.4]} 27. Rxe6 {[%clk 0:00:09]} 27... Bxf2+ {[%clk 0:01:21.2]} 28.
Qxf2 {[%clk 0:00:08.5]} 28... Qxf2+ {[%clk 0:01:19.6]} 29. Kxf2 {[%clk
0:00:08.7]} 29... fxe6 {[%clk 0:01:20.2]} 30. Kxf3 {[%clk 0:00:09]} 30... Rc8
{[%clk 0:01:19.6]} 31. Bd2 {[%clk 0:00:07.1]} 31... Ra8 {[%clk 0:01:13.9]} 32.
Nxd6 {[%clk 0:00:07.2]} 32... Rd8 {[%clk 0:01:13.7]} 33. Nc4 {[%clk 0:00:07.5]}
33... Rd3+ {[%clk 0:01:14.3]} 34. Ke2 {[%clk 0:00:06.7]} 34... Rxb3 {[%clk
0:01:15.1]} 35. Nxa5 {[%clk 0:00:07.2]} 35... Ra3 {[%clk 0:01:15.1]} 36. Bxb4
{[%clk 0:00:07.4]} 36... Rxa4 {[%clk 0:01:15.4]} 37. Bd2 {[%clk 0:00:07]} 37...
Ra2 {[%clk 0:01:15.5]} 38. Nc4 {[%clk 0:00:07.1]} 38... Kf7 {[%clk 0:01:15.6]}
39. Kf3 {[%clk 0:00:07.3]} 39... g6 {[%clk 0:01:14.5]} 40. Bxh6 {[%clk
0:00:06.8]} 40... Kf6 {[%clk 0:01:14.2]} 41. Be3 {[%clk 0:00:06.8]} 41... e5
{[%clk 0:01:14.5]} 42. Nd2 {[%clk 0:00:06.7]} 42... Kf5 {[%clk 0:01:14.4]} 43.
Ne4 {[%clk 0:00:07.6]} 43... Ra3 {[%clk 0:01:14]} 44. h4 {[%clk 0:00:05.9]}
44... Ke6 {[%clk 0:01:13.1]} 45. g4 {[%clk 0:00:05.3]} 45... Kf7 {[%clk
0:01:13.2]} 46. Ng5+ {[%clk 0:00:05.4]} 46... Kg7 {[%clk 0:01:13.2]} 47. Ke4
{[%clk 0:00:05.2]} 47... Ra4+ {[%clk 0:01:12.6]} 48. Kf3 {[%clk 0:00:04.7]}
48... Ra3 {[%clk 0:01:11.9]} 49. Ne4 {[%clk 0:00:05.6]} 49... Kf7 {[%clk
0:01:11.4]} 50. Kf2 {[%clk 0:00:05.7]} 50... Ra4 {[%clk 0:01:10.8]} 51. Ng5+
{[%clk 0:00:04]} 51... Kg7 {[%clk 0:01:10.7]} 52. Kf3 {[%clk 0:00:04.1]} 52...
Rb4 {[%clk 0:01:08.8]} 53. Bf2 {[%clk 0:00:02.8]} 53... Rf4+ {[%clk 0:01:08.2]}
54. Kg3 {[%clk 0:00:02.8]} 54... Ra4 {[%clk 0:01:06.3]} 55. Bg1 {[%clk
0:00:03.1]} 55... Ra3+ {[%clk 0:01:06]} 56. Kg2 {[%clk 0:00:03.4]} 56... Ra2+
{[%clk 0:01:05.5]} 57. Kf3 {[%clk 0:00:03.7]} 57... Kf6 {[%clk 0:01:05.4]} 58.
Be3 {[%clk 0:00:04.1]} 58... Ra3 {[%clk 0:01:05.1]} 59. Ne4+ {[%clk 0:00:05]}
59... Ke6 {[%clk 0:01:04.9]} 60. Nf2 {[%clk 0:00:04.8]} 60... Kd5 {[%clk
0:01:04.8]} 61. h5 {[%clk 0:00:05.3]} 61... gxh5 {[%clk 0:01:04.1]} 62. gxh5
{[%clk 0:00:06.2]} 62... Ra8 {[%clk 0:01:02]} 63. Ng4 {[%clk 0:00:04.4]} 63...
Ke6 {[%clk 0:01:01.1]} 64. h6 {[%clk 0:00:02.8]} 64... Kf5 {[%clk 0:01:00.7]}
65. Nf2 {[%clk 0:00:03.5]} 65... Rh8 {[%clk 0:01:00]} 66. Ne4 {[%clk 0:00:03.8]}
66... Kg6 {[%clk 0:00:58.4]} 67. Kg4 {[%clk 0:00:02.7]} 67... Ra8 {[%clk
0:00:55.1]} 68. Kf3 {[%clk 0:00:02]} 68... Rf8+ {[%clk 0:00:54.4]} 69. Kg4
{[%clk 0:00:02.1]} 69... Rh8 {[%clk 0:00:53.1]} 70. Kf3 {[%clk 0:00:02.3]} 70...
Rxh6 {[%clk 0:00:53.4]} 71. Bxh6 {[%clk 0:00:01.7]} 71... Kxh6 {[%clk
0:00:54.3]} 72. Kg4 {[%clk 0:00:02.4]} 72... Kg6 {[%clk 0:00:54.9]} 73. Ng3
{[%clk 0:00:03.3]} 73... e4 {[%clk 0:00:55.1]} 74. Nxe4 {[%clk 0:00:04.2]}
1/2-1/2

[Event "Late-Titled-Tuesday-Blitz-March-26-2024"]
[Site "Chess.com"]
[Date "2024.03.26"]
[Round "3"]
[White "ahkashefi2800"]
[Black "stepanosinovsky"]
[Result "1-0"]
[WhiteElo "2591"]
[BlackElo "2374"]
[TimeControl "180+1"]
[EndTime "14:30:40 PDT"]
[Termination "ahkashefi2800 won on time"]

1. d4 {[%clk 0:03:00.1]} 1... Nf6 {[%clk 0:02:59.3]} 2. Nf3 {[%clk 0:02:54.7]}
2... g6 {[%clk 0:02:59.6]} 3. g3 {[%clk 0:02:46.3]} 3... Bg7 {[%clk 0:02:59.6]}
4. Bg2 {[%clk 0:02:37]} 4... O-O {[%clk 0:03:00.5]} 5. O-O {[%clk 0:02:33.2]}
5... c6 {[%clk 0:02:54.8]} 6. c4 {[%clk 0:02:28.3]} 6... d6 {[%clk 0:02:53.7]}
7. Nc3 {[%clk 0:02:28.3]} 7... Nbd7 {[%clk 0:02:52.4]} 8. Bg5 {[%clk 0:02:27.4]}
8... e5 {[%clk 0:02:47]} 9. dxe5 {[%clk 0:02:26.8]} 9... dxe5 {[%clk 0:02:43.8]}
10. Qc2 {[%clk 0:02:25.9]} 10... Nc5 {[%clk 0:02:19.5]} 11. Nxe5 {[%clk
0:02:17.4]} 11... Bf5 {[%clk 0:02:14.7]} 12. e4 {[%clk 0:02:09.5]} 12... Be6
{[%clk 0:01:46.1]} 13. Rad1 {[%clk 0:02:05.1]} 13... Qa5 {[%clk 0:01:45.6]} 14.
a3 {[%clk 0:01:46.6]} 14... Ncxe4 {[%clk 0:01:38.3]} 15. Bxf6 {[%clk 0:01:25.9]}
15... Nxf6 {[%clk 0:01:34.5]} 16. Rfe1 {[%clk 0:01:23.3]} 16... Rfe8 {[%clk
0:01:08.6]} 17. Qc1 {[%clk 0:01:22.9]} 17... Ng4 {[%clk 0:00:21.3]} 18. b4
{[%clk 0:01:18.8]} 18... Qc7 {[%clk 0:00:17.9]} 19. Nxg4 {[%clk 0:01:18.4]}
19... Bxg4 {[%clk 0:00:18.8]} 20. Rxe8+ {[%clk 0:01:17.7]} 20... Rxe8 {[%clk
0:00:19.7]} 21. Re1 {[%clk 0:01:16.7]} 21... Rxe1+ {[%clk 0:00:17.6]} 22. Qxe1
{[%clk 0:01:16.7]} 22... Qe5 {[%clk 0:00:18.3]} 23. Qxe5 {[%clk 0:01:14.4]}
23... Bxe5 {[%clk 0:00:19.2]} 24. Ne4 {[%clk 0:01:15.1]} 24... Be6 {[%clk
0:00:18.2]} 25. Nc5 {[%clk 0:01:13.9]} 25... Bc8 {[%clk 0:00:14]} 26. Nd3 {[%clk
0:00:59.4]} 26... Bd4 {[%clk 0:00:13.9]} 27. Bf1 {[%clk 0:00:56.7]} 27... Kf8
{[%clk 0:00:13.1]} 28. Kg2 {[%clk 0:00:54.2]} 28... Ke7 {[%clk 0:00:11.2]} 29.
a4 {[%clk 0:00:53.6]} 29... Bf5 {[%clk 0:00:08.7]} 30. Kf3 {[%clk 0:00:49.6]}
30... Kd6 {[%clk 0:00:07.6]} 31. c5+ {[%clk 0:00:47.5]} 31... Kd5 {[%clk
0:00:06.3]} 32. Nf4+ {[%clk 0:00:47.8]} 32... Ke5 {[%clk 0:00:06.5]} 33. Bc4
{[%clk 0:00:47.9]} 33... Kf6 {[%clk 0:00:05.2]} 34. h4 {[%clk 0:00:45.8]} 34...
h5 {[%clk 0:00:05.1]} 35. Bd3 {[%clk 0:00:42.8]} 35... Bd7 {[%clk 0:00:04.4]}
36. Be4 {[%clk 0:00:41]} 36... Bg4+ {[%clk 0:00:04.2]} 37. Kg2 {[%clk
0:00:39.9]} 37... a6 {[%clk 0:00:04.5]} 38. Nd3 {[%clk 0:00:39.8]} 38... Be2
{[%clk 0:00:03.2]} 39. Nf4 {[%clk 0:00:36.1]} 39... Bg4 {[%clk 0:00:02.5]} 40.
b5 {[%clk 0:00:34.9]} 40... axb5 {[%clk 0:00:02.2]} 41. axb5 {[%clk 0:00:35.2]}
41... cxb5 {[%clk 0:00:02]} 42. c6 {[%clk 0:00:29.8]} 42... bxc6 {[%clk
0:00:01.6]} 43. Bxc6 {[%clk 0:00:28.7]} 43... b4 {[%clk 0:00:01.7]} 44. Nd5+
{[%clk 0:00:29]} 44... Ke5 {[%clk 0:00:01.9]} 45. Nxb4 {[%clk 0:00:29.3]} 45...
Bc3 {[%clk 0:00:01.5]} 46. Nd3+ {[%clk 0:00:28.5]} 46... Kf6 {[%clk 0:00:01.9]}
47. Bd5 {[%clk 0:00:28.3]} 47... Bf5 {[%clk 0:00:02]} 48. Nf4 {[%clk 0:00:28]}
48... Be5 {[%clk 0:00:02.3]} 49. Ne2 {[%clk 0:00:28]} 49... Bd3 {[%clk
0:00:02.6]} 50. Ng1 {[%clk 0:00:28.3]} 50... Bf5 {[%clk 0:00:02.7]} 51. Nf3
{[%clk 0:00:28.1]} 51... Bd6 {[%clk 0:00:02.9]} 52. Ng5 {[%clk 0:00:28.3]} 52...
Bd7 {[%clk 0:00:03]} 53. Nxf7 {[%clk 0:00:26.7]} 53... Be8 {[%clk 0:00:01.9]}
54. Nxd6 {[%clk 0:00:26.2]} 1-0

[Event "Late-Titled-Tuesday-Blitz-March-26-2024"]
[Site "Chess.com"]
[Date "2024.03.26"]
[Round "3"]
[White "The_Machine04"]
[Black "Oleksandr_Bortnyk"]
[Result "0-1"]
[WhiteElo "2790"]
[BlackElo "3052"]
[TimeControl "180+1"]
[EndTime "14:30:43 PDT"]
[Termination "Oleksandr_Bortnyk won by checkmate"]

1. d4 {[%clk 0:03:00.9]} 1... Nf6 {[%clk 0:02:56.1]} 2. Nf3 {[%clk 0:02:54.2]}
2... b6 {[%clk 0:02:51.2]} 3. Nbd2 {[%clk 0:02:53.1]} 3... Bb7 {[%clk
0:02:51.5]} 4. e3 {[%clk 0:02:52.3]} 4... g6 {[%clk 0:02:51.3]} 5. Bd3 {[%clk
0:02:51]} 5... d5 {[%clk 0:02:51.3]} 6. Ne5 {[%clk 0:02:42.5]} 6... Bg7 {[%clk
0:02:48.7]} 7. O-O {[%clk 0:02:40.9]} 7... c5 {[%clk 0:02:48.3]} 8. c3 {[%clk
0:02:41]} 8... O-O {[%clk 0:02:48]} 9. f4 {[%clk 0:02:40.9]} 9... Nbd7 {[%clk
0:02:35.6]} 10. Qf3 {[%clk 0:02:40]} 10... Ne8 {[%clk 0:02:30.7]} 11. Qh3 {[%clk
0:02:33.7]} 11... e6 {[%clk 0:02:18.6]} 12. g4 {[%clk 0:02:17.1]} 12... Nd6
{[%clk 0:02:08.1]} 13. g5 {[%clk 0:02:14.2]} 13... cxd4 {[%clk 0:01:58.1]} 14.
exd4 {[%clk 0:02:13.3]} 14... Rc8 {[%clk 0:01:26.8]} 15. Qg2 {[%clk 0:01:55]}
15... b5 {[%clk 0:01:19.9]} 16. a3 {[%clk 0:01:50.2]} 16... a5 {[%clk
0:01:19.3]} 17. h4 {[%clk 0:01:28.4]} 17... b4 {[%clk 0:01:18.2]} 18. cxb4
{[%clk 0:01:27.6]} 18... axb4 {[%clk 0:01:19.1]} 19. a4 {[%clk 0:01:28.1]} 19...
Qb6 {[%clk 0:01:06.2]} 20. Qf2 {[%clk 0:00:47.7]} 20... Rfd8 {[%clk 0:01:04.8]}
21. a5 {[%clk 0:00:46.7]} 21... Qa7 {[%clk 0:01:05.1]} 22. a6 {[%clk 0:00:45.4]}
22... Ba8 {[%clk 0:01:05.4]} 23. h5 {[%clk 0:00:36.7]} 23... Ne4 {[%clk
0:01:04.1]} 24. Nxe4 {[%clk 0:00:20]} 24... dxe4 {[%clk 0:01:05]} 25. Bb5 {[%clk
0:00:20.6]} 25... Nb6 {[%clk 0:00:53.9]} 26. Be3 {[%clk 0:00:19.4]} 26... Nd5
{[%clk 0:00:54.1]} 27. Rfd1 {[%clk 0:00:15.9]} 27... b3 {[%clk 0:00:53.4]} 28.
hxg6 {[%clk 0:00:15.4]} 28... hxg6 {[%clk 0:00:51.2]} 29. Rd2 {[%clk 0:00:15]}
29... Nxe3 {[%clk 0:00:41.5]} 30. Qxe3 {[%clk 0:00:15.9]} 30... Rc2 {[%clk
0:00:40.6]} 31. Rad1 {[%clk 0:00:15.2]} 31... Qb6 {[%clk 0:00:29.2]} 32. Bf1
{[%clk 0:00:14.7]} 32... Bd5 {[%clk 0:00:28]} 33. Qf2 {[%clk 0:00:07.6]} 33...
Rdc8 {[%clk 0:00:25.3]} 34. Qe3 {[%clk 0:00:07.2]} 34... Rxd2 {[%clk 0:00:24.7]}
35. Rxd2 {[%clk 0:00:08.1]} 35... Rc1 {[%clk 0:00:23.7]} 36. Kf2 {[%clk
0:00:08]} 36... Rc2 {[%clk 0:00:22.3]} 37. Be2 {[%clk 0:00:08.3]} 37... Bf8
{[%clk 0:00:18.4]} 38. Bd1 {[%clk 0:00:08.4]} 38... Rxd2+ {[%clk 0:00:14.1]} 39.
Qxd2 {[%clk 0:00:09.3]} 39... Qxa6 {[%clk 0:00:14.4]} 40. Be2 {[%clk 0:00:09]}
40... Qa1 {[%clk 0:00:10.8]} 41. Ng4 {[%clk 0:00:07.9]} 41... Bg7 {[%clk
0:00:06.6]} 42. Bd1 {[%clk 0:00:07.6]} 42... Qa7 {[%clk 0:00:04.9]} 43. Ne5
{[%clk 0:00:07]} 43... Bf8 {[%clk 0:00:03.6]} 44. Qc3 {[%clk 0:00:07]} 44... Qb6
{[%clk 0:00:03.9]} 45. Ng4 {[%clk 0:00:07]} 45... Bg7 {[%clk 0:00:03.6]} 46.
Nf6+ {[%clk 0:00:03.5]} 46... Bxf6 {[%clk 0:00:03.2]} 47. gxf6 {[%clk
0:00:04.4]} 47... Qb8 {[%clk 0:00:03]} 48. Qg3 {[%clk 0:00:03]} 48... Qb6 {[%clk
0:00:01.9]} 49. Ke3 {[%clk 0:00:02.5]} 49... Qd8 {[%clk 0:00:02.1]} 50. Qh4
{[%clk 0:00:02.5]} 50... Qf8 {[%clk 0:00:02.2]} 51. Qg5 {[%clk 0:00:02.8]} 51...
Qb4 {[%clk 0:00:02]} 52. Be2 {[%clk 0:00:02.9]} 52... Qf8 {[%clk 0:00:01.7]} 53.
Qh4 {[%clk 0:00:03.3]} 53... Qc8 {[%clk 0:00:02.1]} 54. Qh6 {[%clk 0:00:03.7]}
54... Qf8 {[%clk 0:00:02.5]} 55. Qg5 {[%clk 0:00:03.8]} 55... Bb7 {[%clk
0:00:02.5]} 56. Bg4 {[%clk 0:00:02.8]} 56... Bd5 {[%clk 0:00:02.7]} 57. Bh3
{[%clk 0:00:02.9]} 57... Qb4 {[%clk 0:00:02.9]} 58. Qh6 {[%clk 0:00:03]} 58...
Qe1# {[%clk 0:00:03.3]} 0-1

[Event "Late-Titled-Tuesday-Blitz-March-26-2024"]
[Site "Chess.com"]
[Date "2024.03.26"]
[Round "3"]
[White "Andreikka"]
[Black "kingofthenil"]
[Result "1-0"]
[WhiteElo "3000"]
[BlackElo "2759"]
[TimeControl "180+1"]
[EndTime "14:30:45 PDT"]
[Termination "Andreikka won by resignation"]

1. d4 {[%clk 0:02:59.8]} 1... d6 {[%clk 0:03:00.4]} 2. Nf3 {[%clk 0:02:58.4]}
2... Nc6 {[%clk 0:03:00.4]} 3. d5 {[%clk 0:02:51.1]} 3... Ne5 {[%clk 0:03:00.3]}
4. Nxe5 {[%clk 0:02:44.6]} 4... dxe5 {[%clk 0:03:01.2]} 5. c4 {[%clk 0:02:44.9]}
5... e6 {[%clk 0:03:00.2]} 6. Nc3 {[%clk 0:02:45.5]} 6... Nf6 {[%clk 0:02:56.8]}
7. g3 {[%clk 0:02:46.2]} 7... exd5 {[%clk 0:02:48.1]} 8. cxd5 {[%clk 0:02:45.7]}
8... Bd6 {[%clk 0:02:42.3]} 9. Bg2 {[%clk 0:02:44.8]} 9... O-O {[%clk
0:02:42.9]} 10. O-O {[%clk 0:02:43.8]} 10... h6 {[%clk 0:02:43.1]} 11. Qc2
{[%clk 0:02:42.2]} 11... Bd7 {[%clk 0:02:41.4]} 12. h3 {[%clk 0:02:37.8]} 12...
Qe7 {[%clk 0:02:36.6]} 13. Kh2 {[%clk 0:02:35.5]} 13... Rae8 {[%clk 0:02:22.9]}
14. e4 {[%clk 0:02:26.3]} 14... Nh7 {[%clk 0:02:22.7]} 15. Be3 {[%clk
0:02:18.2]} 15... h5 {[%clk 0:02:02.9]} 16. Qe2 {[%clk 0:02:07.6]} 16... h4
{[%clk 0:01:59.5]} 17. g4 {[%clk 0:02:07.4]} 17... g5 {[%clk 0:01:50.1]} 18.
Rac1 {[%clk 0:02:04.9]} 18... a6 {[%clk 0:01:43.3]} 19. Nd1 {[%clk 0:01:45.1]}
19... Bb5 {[%clk 0:01:10.1]} 20. Qc2 {[%clk 0:01:25.8]} 20... Bxf1 {[%clk
0:01:08.7]} 21. Bxf1 {[%clk 0:01:25.8]} 21... Rb8 {[%clk 0:01:07]} 22. Bd2
{[%clk 0:01:24.2]} 22... Rfc8 {[%clk 0:01:05.6]} 23. Ne3 {[%clk 0:01:23.4]}
23... Qd7 {[%clk 0:00:55.8]} 24. Nf5 {[%clk 0:01:20.9]} 24... f6 {[%clk
0:00:54.9]} 25. Be3 {[%clk 0:01:11.8]} 25... Nf8 {[%clk 0:00:54.8]} 26. Qb3
{[%clk 0:00:52.7]} 26... Ng6 {[%clk 0:00:54.8]} 27. Ba7 {[%clk 0:00:53]} 27...
Ra8 {[%clk 0:00:35.4]} 28. Qxb7 {[%clk 0:00:50.6]} 28... Ne7 {[%clk 0:00:36.1]}
29. Nxd6 {[%clk 0:00:46.5]} 29... Qxd6 {[%clk 0:00:27.2]} 30. Bc5 {[%clk
0:00:44.6]} 30... Qd8 {[%clk 0:00:19.5]} 31. Ba3 {[%clk 0:00:27.9]} 31... Ng6
{[%clk 0:00:16.4]} 32. Rc6 {[%clk 0:00:27.1]} 32... Rcb8 {[%clk 0:00:05.1]} 33.
Qxc7 {[%clk 0:00:25.8]} 33... Qxc7 {[%clk 0:00:06]} 34. Rxc7 {[%clk 0:00:26.4]}
34... Rc8 {[%clk 0:00:06.9]} 35. d6 {[%clk 0:00:24.2]} 35... Rd8 {[%clk
0:00:01.6]} 36. Bc4+ {[%clk 0:00:21.8]} 36... Kh8 {[%clk 0:00:01.5]} 37. Rf7
{[%clk 0:00:19]} 37... Nf4 {[%clk 0:00:01.6]} 38. Rxf6 {[%clk 0:00:18]} 38...
Rf8 {[%clk 0:00:02.1]} 39. Rxf8+ {[%clk 0:00:07.2]} 39... Rxf8 {[%clk 0:00:03]}
40. Bxa6 {[%clk 0:00:07.4]} 40... Ne2 {[%clk 0:00:03.6]} 41. d7 {[%clk
0:00:04.2]} 41... Rxf2+ {[%clk 0:00:03.2]} 42. Kh1 {[%clk 0:00:04.8]} 42... Ng3+
{[%clk 0:00:03.1]} 43. Kg1 {[%clk 0:00:05.1]} 43... Rd2 {[%clk 0:00:04]} 44. Bb5
{[%clk 0:00:03.3]} 44... Rd1+ {[%clk 0:00:02.6]} 45. Kf2 {[%clk 0:00:01.9]}
45... Rd2+ {[%clk 0:00:03.5]} 46. Ke1 {[%clk 0:00:02]} 46... Rd4 {[%clk
0:00:02.6]} 47. Be7 {[%clk 0:00:01.7]} 47... Rxe4+ {[%clk 0:00:03.5]} 48. Kd1
{[%clk 0:00:01.6]} 48... Rd4+ {[%clk 0:00:04.4]} 49. Kc2 {[%clk 0:00:02.2]}
49... Ne4 {[%clk 0:00:04]} 50. d8=Q+ {[%clk 0:00:02.5]} 50... Rxd8 {[%clk
0:00:04.7]} 51. Bxd8 {[%clk 0:00:03.4]} 51... Kg7 {[%clk 0:00:05.4]} 52. Bf1
{[%clk 0:00:03.7]} 52... Kh6 {[%clk 0:00:05.4]} 53. Bg2 {[%clk 0:00:04.3]} 53...
Ng3 {[%clk 0:00:05.3]} 54. Bb6 {[%clk 0:00:04.7]} 54... e4 {[%clk 0:00:06.2]}
55. Be3 {[%clk 0:00:05.3]} 55... Ne2 {[%clk 0:00:06.6]} 56. Kd2 {[%clk
0:00:05.9]} 56... Nf4 {[%clk 0:00:07.3]} 57. Bxe4 {[%clk 0:00:06.7]} 57... Nxh3
{[%clk 0:00:07.5]} 58. Ke2 {[%clk 0:00:07.3]} 58... Nf4+ {[%clk 0:00:07.4]} 59.
Bxf4 {[%clk 0:00:07.7]} 59... gxf4 {[%clk 0:00:08.3]} 60. Bg2 {[%clk 0:00:08]}
1-0

[Event "Late-Titled-Tuesday-Blitz-March-26-2024"]
[Site "Chess.com"]
[Date "2024.03.26"]
[Round "3"]
[White "Nechitaylo_Nikita"]
[Black "PNEPaul"]
[Result "1-0"]
[WhiteElo "2363"]
[BlackElo "1962"]
[TimeControl "180+1"]
[EndTime "14:30:54 PDT"]
[Termination "Nechitaylo_Nikita won on time"]

1. d4 {[%clk 0:03:00.9]} 1... Nf6 {[%clk 0:02:57.4]} 2. c4 {[%clk 0:03:00.9]}
2... c5 {[%clk 0:02:57.5]} 3. d5 {[%clk 0:03:00.9]} 3... Ne4 {[%clk 0:02:56.9]}
4. Qc2 {[%clk 0:02:54.7]} 4... Qa5+ {[%clk 0:02:56]} 5. Nd2 {[%clk 0:02:51.2]}
5... Nf6 {[%clk 0:02:53.8]} 6. Nf3 {[%clk 0:02:46.9]} 6... d6 {[%clk 0:02:53.7]}
7. e4 {[%clk 0:02:41.8]} 7... g6 {[%clk 0:02:53.4]} 8. Be2 {[%clk 0:02:37.8]}
8... Bg7 {[%clk 0:02:52.9]} 9. O-O {[%clk 0:02:37.9]} 9... Na6 {[%clk
0:02:52.9]} 10. Nb3 {[%clk 0:02:31.6]} 10... Qd8 {[%clk 0:02:52.5]} 11. Bf4
{[%clk 0:02:15.6]} 11... O-O {[%clk 0:02:48.9]} 12. h3 {[%clk 0:02:15.8]} 12...
h6 {[%clk 0:02:48]} 13. e5 {[%clk 0:02:09.6]} 13... dxe5 {[%clk 0:02:40.3]} 14.
Nxe5 {[%clk 0:02:09.9]} 14... Bf5 {[%clk 0:02:39]} 15. Bd3 {[%clk 0:02:02.8]}
15... Nb4 {[%clk 0:02:38.4]} 16. Qe2 {[%clk 0:01:51.7]} 16... Nxd3 {[%clk
0:02:37.7]} 17. Nxd3 {[%clk 0:01:52.6]} 17... Bxd3 {[%clk 0:02:37.2]} 18. Qxd3
{[%clk 0:01:53.5]} 18... b6 {[%clk 0:02:35.7]} 19. Rfe1 {[%clk 0:01:45.7]} 19...
Qd7 {[%clk 0:02:33.3]} 20. Qe3 {[%clk 0:01:41.3]} 20... g5 {[%clk 0:02:18.7]}
21. Bh2 {[%clk 0:01:23.4]} 21... Rfe8 {[%clk 0:02:18.6]} 22. Rad1 {[%clk
0:01:21.8]} 22... Nh5 {[%clk 0:01:43.2]} 23. Qf3 {[%clk 0:01:17.2]} 23... Nf6
{[%clk 0:01:37.6]} 24. Nc1 {[%clk 0:00:47.2]} 24... g4 {[%clk 0:01:33.8]} 25.
hxg4 {[%clk 0:00:36.4]} 25... Qxg4 {[%clk 0:01:30.1]} 26. Qxg4 {[%clk
0:00:13.3]} 26... Nxg4 {[%clk 0:01:29.7]} 27. Nd3 {[%clk 0:00:14.2]} 27... Bd4
{[%clk 0:01:23.8]} 28. Bf4 {[%clk 0:00:11]} 28... Kh7 {[%clk 0:01:18.5]} 29. Kf1
{[%clk 0:00:08.2]} 29... Bg7 {[%clk 0:01:05.6]} 30. f3 {[%clk 0:00:07.2]} 30...
Nf6 {[%clk 0:01:04.1]} 31. Ke2 {[%clk 0:00:07.8]} 31... Nh5 {[%clk 0:00:58.9]}
32. Be3 {[%clk 0:00:08.1]} 32... Ng3+ {[%clk 0:00:57.1]} 33. Kf2 {[%clk
0:00:08.7]} 33... Nf5 {[%clk 0:00:56.2]} 34. g4 {[%clk 0:00:05.5]} 34... Nxe3
{[%clk 0:00:55.9]} 35. Kxe3 {[%clk 0:00:06.4]} 35... Bd4+ {[%clk 0:00:54.9]} 36.
Kf4 {[%clk 0:00:04.5]} 36... a6 {[%clk 0:00:50.1]} 37. b4 {[%clk 0:00:04.2]}
37... Kg6 {[%clk 0:00:49]} 38. bxc5 {[%clk 0:00:03.5]} 38... bxc5 {[%clk
0:00:48.9]} 39. Ne5+ {[%clk 0:00:03.6]} 39... Bxe5+ {[%clk 0:00:46.7]} 40. Kxe5
{[%clk 0:00:02.7]} 40... Rab8 {[%clk 0:00:43.2]} 41. Rb1 {[%clk 0:00:02.7]}
41... Rb4 {[%clk 0:00:33]} 42. Rxb4 {[%clk 0:00:02.2]} 42... cxb4 {[%clk
0:00:32.7]} 43. Rb1 {[%clk 0:00:02.5]} 43... a5 {[%clk 0:00:32.7]} 44. f4 {[%clk
0:00:02.8]} 44... Rc8 {[%clk 0:00:31.2]} 45. Kd4 {[%clk 0:00:03.2]} 45... f5
{[%clk 0:00:27.2]} 46. gxf5+ {[%clk 0:00:01.5]} 46... Kxf5 {[%clk 0:00:26.8]}
47. Re1 {[%clk 0:00:01.6]} 47... Rc7 {[%clk 0:00:24]} 48. Re6 {[%clk 0:00:01.8]}
48... Kxf4 {[%clk 0:00:22.9]} 49. Rxh6 {[%clk 0:00:02.5]} 49... a4 {[%clk
0:00:22.4]} 50. Rb6 {[%clk 0:00:02.1]} 50... b3 {[%clk 0:00:13.9]} 51. axb3
{[%clk 0:00:03]} 51... axb3 {[%clk 0:00:13.5]} 52. Rxb3 {[%clk 0:00:03.9]} 52...
Kf5 {[%clk 0:00:12.5]} 53. Re3 {[%clk 0:00:03.7]} 53... Kf6 {[%clk 0:00:11.9]}
54. c5 {[%clk 0:00:04.3]} 54... Ra7 {[%clk 0:00:11.2]} 55. d6 {[%clk 0:00:03.4]}
55... Ra4+ {[%clk 0:00:10.2]} 56. Kd5 {[%clk 0:00:03.4]} 56... exd6 {[%clk
0:00:07.9]} 57. cxd6 {[%clk 0:00:04]} 57... Ra5+ {[%clk 0:00:07.8]} 58. Kc6
{[%clk 0:00:04.7]} 58... Ra6+ {[%clk 0:00:07.6]} 59. Kc7 {[%clk 0:00:05.4]}
59... Ra1 {[%clk 0:00:04.8]} 60. d7 {[%clk 0:00:05.6]} 60... Rc1+ {[%clk
0:00:03.8]} 61. Kd8 {[%clk 0:00:06]} 61... Rd1 {[%clk 0:00:03.8]} 62. Rf3+
{[%clk 0:00:05.9]} 62... Ke6 {[%clk 0:00:03.4]} 63. Ke8 {[%clk 0:00:04.6]} 1-0